[Event "Live Chess"]
[Site "Chess.com"]
[Date "2024.06.02"]
[Round "-"]
[White "blunderabit"]
[Black "Vladyslav2008"]
[Result "0-1"]
[WhiteElo "1773"]
[BlackElo "2256"]
[TimeControl "300"]
[EndTime "1:48:30 PDT"]
[Termination "Vladyslav2008 won by resignation"]

1. e4 {[%clk 0:04:56.4]} 1... c5 {[%clk 0:04:58.3]} 2. Nf3 {[%clk 0:04:53.4]}
2... d6 {[%clk 0:04:57]} 3. d4 {[%clk 0:04:51.1]} 3... cxd4 {[%clk 0:04:56.1]}
4. Nxd4 {[%clk 0:04:50.6]} 4... Nf6 {[%clk 0:04:54.8]} 5. Nc3 {[%clk 0:04:50.1]}
5... a6 {[%clk 0:04:53.4]} 6. Bd3 {[%clk 0:04:47.8]} 6... e6 {[%clk 0:04:52.1]}
7. O-O {[%clk 0:04:44.1]} 7... b5 {[%clk 0:04:50.4]} 8. a3 {[%clk 0:04:41.5]}
8... Bb7 {[%clk 0:04:49.1]} 9. Kh1 {[%clk 0:04:36.8]} 9... Be7 {[%clk
0:04:47.2]} 10. f4 {[%clk 0:04:32]} 10... O-O {[%clk 0:04:45.3]} 11. Qe2 {[%clk
0:04:27.3]} 11... Qc7 {[%clk 0:04:40.2]} 12. Be3 {[%clk 0:04:23.9]} 12... Nbd7
{[%clk 0:04:38.9]} 13. Rae1 {[%clk 0:04:16.4]} 13... Nc5 {[%clk 0:04:36.2]} 14.
Bg1 {[%clk 0:04:12.7]} 14... Rfd8 {[%clk 0:04:26.5]} 15. e5 {[%clk 0:03:59.4]}
15... dxe5 {[%clk 0:04:09.9]} 16. fxe5 {[%clk 0:03:57.6]} 16... Nd5 {[%clk
0:04:08.7]} 17. Qf3 {[%clk 0:03:33]} 17... Rf8 {[%clk 0:04:01.4]} 18. Bxh7+
{[%clk 0:03:10.6]} 18... Kxh7 {[%clk 0:03:58.2]} 19. Qh5+ {[%clk 0:03:09.1]}
19... Kg8 {[%clk 0:03:57]} 20. Rf3 {[%clk 0:03:00.7]} 20... Nf6 {[%clk
0:03:51.4]} 21. exf6 {[%clk 0:02:46.5]} 21... Bxf3 {[%clk 0:03:50]} 22. fxg7
{[%clk 0:02:45.1]} 22... Bxh5 {[%clk 0:03:48.3]} 23. gxf8=Q+ {[%clk 0:02:41.6]}
23... Bxf8 {[%clk 0:03:46.7]} 0-1

[Event "Live Chess"]
[Site "Chess.com"]
[Date "2024.06.02"]
[Round "-"]
[White "StoreySniper"]
[Black "Duke_of_Bebington"]
[Result "1-0"]
[WhiteElo "2501"]
[BlackElo "1664"]
[TimeControl "300"]
[EndTime "1:48:33 PDT"]
[Termination "StoreySniper won by resignation"]

1. e4 {[%clk 0:04:58]} 1... e5 {[%clk 0:04:59.1]} 2. Nc3 {[%clk 0:04:55.9]} 2...
Nc6 {[%clk 0:04:57.6]} 3. g3 {[%clk 0:04:54.1]} 3... Bc5 {[%clk 0:04:53.7]} 4.
Bg2 {[%clk 0:04:52.7]} 4... Nf6 {[%clk 0:04:52.7]} 5. d3 {[%clk 0:04:50.5]} 5...
d6 {[%clk 0:04:51.5]} 6. Nf3 {[%clk 0:04:44.4]} 6... h6 {[%clk 0:04:48.5]} 7.
O-O {[%clk 0:04:43.3]} 7... Be6 {[%clk 0:04:47.4]} 8. Na4 {[%clk 0:04:41.6]}
8... Bb6 {[%clk 0:04:45.8]} 9. Nxb6 {[%clk 0:04:40.3]} 9... axb6 {[%clk
0:04:45.7]} 10. a3 {[%clk 0:04:37.3]} 10... Qd7 {[%clk 0:04:43.7]} 11. Re1
{[%clk 0:04:33]} 11... Bh3 {[%clk 0:04:41]} 12. Bh1 {[%clk 0:04:31.9]} 12... O-O
{[%clk 0:04:39.1]} 13. d4 {[%clk 0:04:30.3]} 13... exd4 {[%clk 0:04:36.1]} 14.
Nxd4 {[%clk 0:04:29.5]} 14... Nxd4 {[%clk 0:04:33.8]} 15. Qxd4 {[%clk
0:04:27.9]} 15... c5 {[%clk 0:04:33]} 16. Qc3 {[%clk 0:04:24.7]} 16... Rad8
{[%clk 0:04:27.9]} 17. Bxh6 {[%clk 0:04:22.6]} 17... gxh6 {[%clk 0:04:26]} 18.
Qxf6 {[%clk 0:04:21.3]} 18... Qe6 {[%clk 0:04:20.6]} 19. Qh4 {[%clk 0:04:16.3]}
19... Rde8 {[%clk 0:04:16.6]} 20. f4 {[%clk 0:04:14.2]} 20... f5 {[%clk
0:04:14.4]} 21. Qxh3 {[%clk 0:03:52.2]} 21... Qc4 {[%clk 0:04:10.7]} 22. Bg2
{[%clk 0:03:42.3]} 22... Qxc2 {[%clk 0:04:07.6]} 23. exf5 {[%clk 0:03:30.7]}
23... Qxf5 {[%clk 0:04:01.5]} 24. Rxe8 {[%clk 0:03:23.2]} 1-0

[Event "Live Chess"]
[Site "Chess.com"]
[Date "2024.06.02"]
[Round "-"]
[White "MagnersCarlsberg2870"]
[Black "Dhaydon19"]
[Result "0-1"]
[WhiteElo "1805"]
[BlackElo "2639"]
[TimeControl "300"]
[EndTime "1:48:35 PDT"]
[Termination "Dhaydon19 won by resignation"]

1. d4 {[%clk 0:04:56.4]} 1... e6 {[%clk 0:04:59.9]} 2. Nd2 {[%clk 0:04:54.8]}
2... d5 {[%clk 0:04:58.9]} 3. e3 {[%clk 0:04:53.8]} 3... Nf6 {[%clk 0:04:58.1]}
4. Bd3 {[%clk 0:04:52.8]} 4... Nbd7 {[%clk 0:04:57.3]} 5. f4 {[%clk 0:04:51.8]}
5... b6 {[%clk 0:04:56.1]} 6. Ngf3 {[%clk 0:04:50.6]} 6... Bb7 {[%clk 0:04:56]}
7. Qe2 {[%clk 0:04:49.1]} 7... c5 {[%clk 0:04:54.5]} 8. c3 {[%clk 0:04:48.2]}
8... Bd6 {[%clk 0:04:53.3]} 9. O-O {[%clk 0:04:46.5]} 9... h5 {[%clk 0:04:50.8]}
10. h3 {[%clk 0:04:42]} 10... h4 {[%clk 0:04:48.2]} 11. Ne5 {[%clk 0:04:40.1]}
11... Nh5 {[%clk 0:04:44.7]} 12. Rf3 {[%clk 0:04:28.3]} 12... Ng3 {[%clk
0:04:41.7]} 13. Qf2 {[%clk 0:04:25.7]} 13... f5 {[%clk 0:04:29.5]} 14. Ng6
{[%clk 0:04:22.7]} 14... Rh6 {[%clk 0:04:27.5]} 15. Nxh4 {[%clk 0:04:21.5]}
15... Ne4 {[%clk 0:04:26.1]} 16. Bxe4 {[%clk 0:04:12]} 16... dxe4 {[%clk
0:04:24.8]} 17. Nxf5 {[%clk 0:04:03.3]} 17... exf5 {[%clk 0:04:21.7]} 18. Rg3
{[%clk 0:03:58.6]} 18... Qf6 {[%clk 0:04:16.8]} 19. Nc4 {[%clk 0:03:53.6]} 19...
Bf8 {[%clk 0:04:14.3]} 20. Rg5 {[%clk 0:03:48.1]} 20... Rg6 {[%clk 0:04:11]} 21.
h4 {[%clk 0:03:46]} 21... Rxg5 {[%clk 0:04:09.2]} 22. hxg5 {[%clk 0:03:44.9]}
22... Qe6 {[%clk 0:04:07.9]} 23. Ne5 {[%clk 0:03:40.4]} 23... Nxe5 {[%clk
0:04:05.4]} 24. dxe5 {[%clk 0:03:39.3]} 24... Be7 {[%clk 0:04:03.4]} 25. Bd2
{[%clk 0:03:36.7]} 25... O-O-O {[%clk 0:03:53.7]} 26. a4 {[%clk 0:03:34.2]}
26... a5 {[%clk 0:03:49]} 27. b4 {[%clk 0:03:32.1]} 27... axb4 {[%clk
0:03:47.5]} 28. a5 {[%clk 0:03:30]} 28... bxa5 {[%clk 0:03:43.3]} 29. Rxa5
{[%clk 0:03:28.6]} 29... b3 {[%clk 0:03:42.4]} 30. Be1 {[%clk 0:03:16.7]} 30...
Rd1 {[%clk 0:03:40]} 31. Qe2 {[%clk 0:03:11.7]} 31... Qd6 {[%clk 0:03:36.9]} 32.
Kf2 {[%clk 0:03:01.2]} 32... Qd3 {[%clk 0:03:34.9]} 0-1

[Event "Live Chess"]
[Site "Chess.com"]
[Date "2024.06.02"]
[Round "-"]
[White "Eva3337"]
[Black "AlexanderMatlak"]
[Result "0-1"]
[WhiteElo "1181"]
[BlackElo "2408"]
[TimeControl "300"]
[EndTime "1:48:57 PDT"]
[Termination "AlexanderMatlak won by resignation"]

1. e4 {[%clk 0:04:56.2]} 1... c5 {[%clk 0:04:58.5]} 2. Nf3 {[%clk 0:04:54.2]}
2... d6 {[%clk 0:04:57.8]} 3. c3 {[%clk 0:04:53.1]} 3... Nf6 {[%clk 0:04:56.2]}
4. Bd3 {[%clk 0:04:51.8]} 4... g6 {[%clk 0:04:55.2]} 5. Bc2 {[%clk 0:04:48.7]}
5... Bg7 {[%clk 0:04:54.5]} 6. d3 {[%clk 0:04:47.4]} 6... O-O {[%clk 0:04:53.6]}
7. O-O {[%clk 0:04:46.3]} 7... Nc6 {[%clk 0:04:52.9]} 8. Re1 {[%clk 0:04:40.3]}
8... b5 {[%clk 0:04:51.1]} 9. a3 {[%clk 0:04:38.1]} 9... a5 {[%clk 0:04:49.2]}
10. Be3 {[%clk 0:04:25.7]} 10... Bb7 {[%clk 0:04:45.1]} 11. Qd2 {[%clk 0:04:24]}
11... Re8 {[%clk 0:04:43.8]} 12. Bh6 {[%clk 0:04:22.4]} 12... Bh8 {[%clk
0:04:43]} 13. c4 {[%clk 0:04:10]} 13... b4 {[%clk 0:04:40]} 14. axb4 {[%clk
0:04:02.8]} 14... cxb4 {[%clk 0:04:28]} 15. b3 {[%clk 0:03:55.5]} 15... Nxe4
{[%clk 0:04:18.5]} 16. Rxe4 {[%clk 0:03:42.7]} 16... Bxa1 {[%clk 0:04:16]} 17.
d4 {[%clk 0:03:29.7]} 17... d5 {[%clk 0:03:55.7]} 18. Rh4 {[%clk 0:03:11.9]}
18... e5 {[%clk 0:03:52.7]} 19. Bg5 {[%clk 0:03:00.1]} 19... f6 {[%clk
0:03:50.1]} 20. Bh6 {[%clk 0:02:51.6]} 20... Nxd4 {[%clk 0:03:45.8]} 21. Nxd4
{[%clk 0:02:45.1]} 21... Bxd4 {[%clk 0:03:45.7]} 22. Rg4 {[%clk 0:02:18.1]}
22... Qd7 {[%clk 0:03:25.1]} 23. Rg3 {[%clk 0:02:01.4]} 23... Qf7 {[%clk
0:03:18.6]} 24. h4 {[%clk 0:01:57.2]} 24... f5 {[%clk 0:02:28.5]} 25. Qg5 {[%clk
0:01:45.6]} 25... Ra6 {[%clk 0:02:17.4]} 26. h5 {[%clk 0:01:17.8]} 26... e4
{[%clk 0:02:13.8]} 27. Qh4 {[%clk 0:00:59.8]} 27... a4 {[%clk 0:01:56.6]} 28.
bxa4 {[%clk 0:00:54.5]} 28... dxc4 {[%clk 0:01:55.6]} 29. Bf4 {[%clk 0:00:21.8]}
29... b3 {[%clk 0:01:49.2]} 30. Bd1 {[%clk 0:00:18.1]} 30... Rae6 {[%clk
0:01:35.3]} 31. hxg6 {[%clk 0:00:15.5]} 31... Rxg6 {[%clk 0:01:35.2]} 0-1

[Event "Live Chess"]
[Site "Chess.com"]
[Date "2024.06.02"]
[Round "-"]
[White "peteopeteo"]
[Black "raimundklein"]
[Result "0-1"]
[WhiteElo "1533"]
[BlackElo "1592"]
[TimeControl "300"]
[EndTime "1:49:01 PDT"]
[Termination "raimundklein won by checkmate"]

1. e4 {[%clk 0:04:58.6]} 1... c6 {[%clk 0:04:59.3]} 2. Nc3 {[%clk 0:04:57.7]}
2... d5 {[%clk 0:04:58.4]} 3. Nf3 {[%clk 0:04:57.4]} 3... Bg4 {[%clk 0:04:56.8]}
4. h3 {[%clk 0:04:56.5]} 4... Bh5 {[%clk 0:04:56.1]} 5. Be2 {[%clk 0:04:51.1]}
5... e6 {[%clk 0:04:44]} 6. exd5 {[%clk 0:04:41.1]} 6... cxd5 {[%clk 0:04:42.3]}
7. Nd4 {[%clk 0:04:40.6]} 7... Bxe2 {[%clk 0:04:35.9]} 8. Qxe2 {[%clk
0:04:40.5]} 8... Nc6 {[%clk 0:04:35.1]} 9. Nxc6 {[%clk 0:04:34.4]} 9... bxc6
{[%clk 0:04:33.6]} 10. d4 {[%clk 0:04:34.3]} 10... Nf6 {[%clk 0:04:30.8]} 11.
O-O {[%clk 0:04:31.9]} 11... Bd6 {[%clk 0:04:21.4]} 12. Bg5 {[%clk 0:04:30.3]}
12... O-O {[%clk 0:04:18.5]} 13. Qf3 {[%clk 0:04:29.4]} 13... Be7 {[%clk
0:04:15.9]} 14. Ne2 {[%clk 0:04:17.6]} 14... Ne4 {[%clk 0:04:12.3]} 15. Bxe7
{[%clk 0:04:17.5]} 15... Qxe7 {[%clk 0:04:11.5]} 16. Qe3 {[%clk 0:04:07.8]}
16... Rab8 {[%clk 0:04:09.8]} 17. Rab1 {[%clk 0:04:04.8]} 17... Rb6 {[%clk
0:04:04.2]} 18. Nc3 {[%clk 0:04:03.2]} 18... Rfb8 {[%clk 0:04:01.4]} 19. Nxe4
{[%clk 0:04:02.3]} 19... dxe4 {[%clk 0:03:59.3]} 20. b3 {[%clk 0:03:59.8]} 20...
f5 {[%clk 0:03:56.1]} 21. c4 {[%clk 0:03:47.3]} 21... a5 {[%clk 0:03:41.8]} 22.
Rfe1 {[%clk 0:03:37.6]} 22... a4 {[%clk 0:03:39.5]} 23. Qg3 {[%clk 0:03:27]}
23... Qa3 {[%clk 0:03:35]} 24. Qe5 {[%clk 0:03:10.7]} 24... axb3 {[%clk
0:03:27]} 25. axb3 {[%clk 0:03:02.9]} 25... Rxb3 {[%clk 0:03:24.3]} 26. Rxb3
{[%clk 0:02:56.8]} 26... Qxb3 {[%clk 0:03:24.2]} 27. Qxe6+ {[%clk 0:02:43.2]}
27... Kh8 {[%clk 0:03:22.9]} 28. Qxc6 {[%clk 0:02:37.2]} 28... h6 {[%clk
0:03:19.7]} 29. Qd5 {[%clk 0:02:22.3]} 29... Rf8 {[%clk 0:03:15.7]} 30. Qc5
{[%clk 0:02:10.5]} 30... Rf7 {[%clk 0:03:09.4]} 31. d5 {[%clk 0:02:04.7]} 31...
Qc3 {[%clk 0:03:03.7]} 32. d6 {[%clk 0:01:59.9]} 32... Qxe1+ {[%clk 0:03:01.9]}
33. Kh2 {[%clk 0:01:59]} 33... Qd2 {[%clk 0:02:50.7]} 34. Qc8+ {[%clk
0:01:56.1]} 34... Kh7 {[%clk 0:02:48.8]} 35. c5 {[%clk 0:01:54.2]} 35... Qf4+
{[%clk 0:02:45.6]} 36. Kg1 {[%clk 0:01:53.1]} 36... Ra7 {[%clk 0:02:42.4]} 37.
g3 {[%clk 0:01:46.8]} 37... Ra1+ {[%clk 0:02:39.3]} 38. Kg2 {[%clk 0:01:46.3]}
38... Qf3+ {[%clk 0:02:38.6]} 39. Kh2 {[%clk 0:01:45.2]} 39... Qxf2# {[%clk
0:02:37.8]} 0-1

[Event "Live Chess"]
[Site "Chess.com"]
[Date "2024.06.02"]
[Round "-"]
[White "Ferrarifan27"]
[Black "juniortay"]
[Result "0-1"]
[WhiteElo "2139"]
[BlackElo "2387"]
[TimeControl "300"]
[EndTime "1:49:07 PDT"]
[Termination "juniortay won by checkmate"]

1. e4 {[%clk 0:04:57.5]} 1... e5 {[%clk 0:04:59]} 2. Nf3 {[%clk 0:04:54.8]} 2...
Nf6 {[%clk 0:04:58.3]} 3. Nxe5 {[%clk 0:04:52.5]} 3... Nc6 {[%clk 0:04:57.9]} 4.
Nxc6 {[%clk 0:04:50.4]} 4... dxc6 {[%clk 0:04:57.8]} 5. Nc3 {[%clk 0:04:47.8]}
5... Bc5 {[%clk 0:04:57]} 6. Be2 {[%clk 0:04:44.6]} 6... Qd4 {[%clk 0:04:55.9]}
7. O-O {[%clk 0:04:42.5]} 7... h5 {[%clk 0:04:52.1]} 8. h3 {[%clk 0:04:29.4]}
8... Ng4 {[%clk 0:04:49.8]} 9. hxg4 {[%clk 0:04:24.9]} 9... hxg4 {[%clk
0:04:48.6]} 10. Bxg4 {[%clk 0:04:22.6]} 10... Qe5 {[%clk 0:04:46.1]} 11. Bh3
{[%clk 0:04:11.5]} 11... Rxh3 {[%clk 0:04:43.9]} 12. gxh3 {[%clk 0:04:08.4]}
12... Qg3+ {[%clk 0:04:42.2]} 13. Kh1 {[%clk 0:04:06.5]} 13... Qxh3+ {[%clk
0:04:41.3]} 14. Kg1 {[%clk 0:04:05.6]} 14... Bg4 {[%clk 0:04:40.2]} 15. Ne2
{[%clk 0:03:58]} 15... Bf3 {[%clk 0:04:37.5]} 16. Nf4 {[%clk 0:03:51.4]} 16...
Qh1# {[%clk 0:04:35.1]} 0-1

[Event "Live Chess"]
[Site "Chess.com"]
[Date "2024.06.02"]
[Round "-"]
[White "AlanBstard10"]
[Black "ProfessorChess101"]
[Result "0-1"]
[WhiteElo "1213"]
[BlackElo "2727"]
[TimeControl "300"]
[EndTime "1:49:21 PDT"]
[Termination "ProfessorChess101 won by checkmate"]

1. b4 {[%clk 0:04:55]} 1... d5 {[%clk 0:04:58.2]} 2. Bb2 {[%clk 0:04:53.7]} 2...
Nd7 {[%clk 0:04:56.7]} 3. a3 {[%clk 0:04:49.5]} 3... e5 {[%clk 0:04:56]} 4. e3
{[%clk 0:04:46.9]} 4... Ngf6 {[%clk 0:04:54.9]} 5. Be2 {[%clk 0:04:44.2]} 5...
Bd6 {[%clk 0:04:54.4]} 6. c4 {[%clk 0:04:42.2]} 6... c6 {[%clk 0:04:53]} 7. cxd5
{[%clk 0:04:40.7]} 7... cxd5 {[%clk 0:04:52]} 8. Nf3 {[%clk 0:04:37.6]} 8... e4
{[%clk 0:04:50.5]} 9. Nd4 {[%clk 0:04:36.7]} 9... Ne5 {[%clk 0:04:49.7]} 10. Nc3
{[%clk 0:04:35.1]} 10... Bd7 {[%clk 0:04:44.4]} 11. Ncb5 {[%clk 0:04:29.9]}
11... Bb8 {[%clk 0:04:43]} 12. O-O {[%clk 0:04:21.6]} 12... Nfg4 {[%clk
0:04:39.3]} 13. Bxg4 {[%clk 0:04:19.5]} 13... Bxg4 {[%clk 0:04:24.6]} 14. Qa4
{[%clk 0:04:11.4]} 14... O-O {[%clk 0:04:21.1]} 15. h3 {[%clk 0:04:04.8]} 15...
Qh4 {[%clk 0:04:11]} 16. Kh2 {[%clk 0:03:37.5]} 16... Nf3+ {[%clk 0:03:45.7]}
17. Kh1 {[%clk 0:03:13.4]} 17... Bxh3 {[%clk 0:03:44.5]} 18. Nxf3 {[%clk
0:03:10.9]} 18... exf3 {[%clk 0:03:38.6]} 19. Bxg7 {[%clk 0:02:40.1]} 19...
Bxg2+ {[%clk 0:03:37.2]} 20. Kg1 {[%clk 0:02:38.8]} 20... Bh2# {[%clk
0:03:37.1]} 0-1

[Event "Live Chess"]
[Site "Chess.com"]
[Date "2024.06.02"]
[Round "-"]
[White "Step-S"]
[Black "GEMdzq"]
[Result "0-1"]
[WhiteElo "1271"]
[BlackElo "2301"]
[TimeControl "300"]
[EndTime "1:49:29 PDT"]
[Termination "GEMdzq won by checkmate"]

1. e4 {[%clk 0:04:55.6]} 1... Nf6 {[%clk 0:04:58.1]} 2. d4 {[%clk 0:04:54.8]}
2... Nxe4 {[%clk 0:04:56.6]} 3. f3 {[%clk 0:04:52.1]} 3... Nf6 {[%clk
0:04:52.8]} 4. Ne2 {[%clk 0:04:49.3]} 4... e6 {[%clk 0:04:47.7]} 5. c4 {[%clk
0:04:47.4]} 5... c5 {[%clk 0:04:47.1]} 6. d5 {[%clk 0:04:43.1]} 6... exd5 {[%clk
0:04:34.1]} 7. cxd5 {[%clk 0:04:40.3]} 7... d6 {[%clk 0:04:33.8]} 8. Nec3 {[%clk
0:04:37.5]} 8... g6 {[%clk 0:04:28.8]} 9. Be2 {[%clk 0:04:35.3]} 9... Bg7 {[%clk
0:04:28.4]} 10. O-O {[%clk 0:04:33.5]} 10... O-O {[%clk 0:04:28.2]} 11. Bg5
{[%clk 0:04:29.3]} 11... h6 {[%clk 0:04:25.7]} 12. Bh4 {[%clk 0:04:25.7]} 12...
Nbd7 {[%clk 0:04:22.7]} 13. Nd2 {[%clk 0:04:24.2]} 13... Ne5 {[%clk 0:04:19.7]}
14. Nde4 {[%clk 0:04:17.7]} 14... g5 {[%clk 0:04:18]} 15. Bg3 {[%clk 0:04:09.3]}
15... Nxe4 {[%clk 0:04:16.1]} 16. Nxe4 {[%clk 0:04:06.4]} 16... f5 {[%clk
0:04:14.1]} 17. Nc3 {[%clk 0:03:59.6]} 17... Bd7 {[%clk 0:04:12.8]} 18. f4
{[%clk 0:03:46.1]} 18... Ng6 {[%clk 0:04:04.9]} 19. fxg5 {[%clk 0:03:40.5]}
19... hxg5 {[%clk 0:04:04.8]} 20. Bh5 {[%clk 0:03:29.4]} 20... Rf6 {[%clk
0:03:59.1]} 21. Qd2 {[%clk 0:03:18.2]} 21... Bh6 {[%clk 0:03:48.4]} 22. Rae1
{[%clk 0:03:13.8]} 22... Qf8 {[%clk 0:03:40.5]} 23. Qc2 {[%clk 0:02:46.7]} 23...
b5 {[%clk 0:03:05.8]} 24. a3 {[%clk 0:02:35.1]} 24... b4 {[%clk 0:03:03.8]} 25.
axb4 {[%clk 0:02:31.4]} 25... cxb4 {[%clk 0:03:03.7]} 26. Na2 {[%clk 0:02:26.9]}
26... Rc8 {[%clk 0:03:01.8]} 27. Qb3 {[%clk 0:02:18]} 27... a5 {[%clk
0:02:57.1]} 28. Re2 {[%clk 0:02:01.3]} 28... Bb5 {[%clk 0:02:51.6]} 29. Ref2
{[%clk 0:01:59]} 29... Bxf1 {[%clk 0:02:50]} 30. Rxf1 {[%clk 0:01:58.1]} 30...
Ne7 {[%clk 0:02:36.8]} 31. Nxb4 {[%clk 0:01:43.2]} 31... axb4 {[%clk 0:02:35]}
32. Qxb4 {[%clk 0:01:40.3]} 32... f4 {[%clk 0:02:33.7]} 33. Bf2 {[%clk
0:01:36.7]} 33... Nf5 {[%clk 0:02:31.8]} 34. Qb7 {[%clk 0:01:17.5]} 34... Bg7
{[%clk 0:02:12.5]} 35. Bg4 {[%clk 0:01:08.5]} 35... Re8 {[%clk 0:02:08.1]} 36.
Bxf5 {[%clk 0:01:02.9]} 36... Rxf5 {[%clk 0:02:07.1]} 37. Bd4 {[%clk 0:01:02]}
37... Bxd4+ {[%clk 0:02:05.7]} 38. Kh1 {[%clk 0:00:51.8]} 38... Qe7 {[%clk
0:02:03.7]} 39. Qb4 {[%clk 0:00:50.3]} 39... Bc5 {[%clk 0:01:59.8]} 40. Qc3
{[%clk 0:00:43.5]} 40... Re5 {[%clk 0:01:57.4]} 41. h3 {[%clk 0:00:34.2]} 41...
Re1 {[%clk 0:01:57.3]} 42. Rxe1 {[%clk 0:00:32.4]} 42... Qxe1+ {[%clk 0:01:55]}
43. Qxe1 {[%clk 0:00:30]} 43... Rxe1+ {[%clk 0:01:54.9]} 44. Kh2 {[%clk
0:00:29.2]} 44... Bg1+ {[%clk 0:01:53.7]} 45. Kh1 {[%clk 0:00:24.9]} 45... Bf2+
{[%clk 0:01:53.5]} 46. Kh2 {[%clk 0:00:23.6]} 46... Bg3# {[%clk 0:01:53.4]} 0-1

[Event "Live Chess"]
[Site "Chess.com"]
[Date "2024.06.02"]
[Round "-"]
[White "80Times"]
[Black "Queensandpawns"]
[Result "0-1"]
[WhiteElo "1894"]
[BlackElo "2269"]
[TimeControl "300"]
[EndTime "1:49:30 PDT"]
[Termination "Queensandpawns won by resignation"]

1. e4 {[%clk 0:04:55.3]} 1... e5 {[%clk 0:04:59.9]} 2. Bc4 {[%clk 0:04:53.9]}
2... Nf6 {[%clk 0:04:59.8]} 3. d4 {[%clk 0:04:53]} 3... exd4 {[%clk 0:04:57.8]}
4. Nf3 {[%clk 0:04:51.1]} 4... Nxe4 {[%clk 0:04:55.9]} 5. Qxd4 {[%clk
0:04:49.2]} 5... Nf6 {[%clk 0:04:54.5]} 6. Nc3 {[%clk 0:04:47.7]} 6... Nc6
{[%clk 0:04:54.4]} 7. Qh4 {[%clk 0:04:45.4]} 7... Be7 {[%clk 0:04:53.4]} 8. Bg5
{[%clk 0:04:39.6]} 8... O-O {[%clk 0:04:52.4]} 9. O-O-O {[%clk 0:04:37.4]} 9...
h6 {[%clk 0:04:52.2]} 10. Rhe1 {[%clk 0:04:28.9]} 10... d6 {[%clk 0:04:43.2]}
11. Bd3 {[%clk 0:04:26.8]} 11... Nb4 {[%clk 0:04:41.9]} 12. Bxh6 {[%clk
0:04:04.9]} 12... Nxd3+ {[%clk 0:04:39.8]} 13. Rxd3 {[%clk 0:04:03]} 13... gxh6
{[%clk 0:04:39.7]} 14. Qxh6 {[%clk 0:04:01.2]} 14... Nh7 {[%clk 0:04:39.5]} 15.
Ne5 {[%clk 0:03:39.4]} 15... Bg5+ {[%clk 0:04:37.6]} 16. Kb1 {[%clk 0:03:33.7]}
16... Bxh6 {[%clk 0:04:37]} 17. Rg3+ {[%clk 0:03:33.1]} 17... Kh8 {[%clk
0:04:36.5]} 0-1

[Event "Live Chess"]
[Site "Chess.com"]
[Date "2024.06.02"]
[Round "-"]
[White "Keithdfg"]
[Black "JanMur7"]
[Result "0-1"]
[WhiteElo "1757"]
[BlackElo "2274"]
[TimeControl "300"]
[EndTime "1:49:44 PDT"]
[Termination "JanMur7 won by resignation"]

1. Nf3 {[%clk 0:04:57.6]} 1... Nf6 {[%clk 0:04:58.6]} 2. d4 {[%clk 0:04:57.2]}
2... d5 {[%clk 0:04:55.8]} 3. Bf4 {[%clk 0:04:57.1]} 3... e6 {[%clk 0:04:47.7]}
4. e3 {[%clk 0:04:55.8]} 4... c5 {[%clk 0:04:45.9]} 5. c3 {[%clk 0:04:54.7]}
5... Qb6 {[%clk 0:04:45.1]} 6. Qb3 {[%clk 0:04:53.3]} 6... c4 {[%clk 0:04:44.2]}
7. Qc2 {[%clk 0:04:50.6]} 7... Be7 {[%clk 0:04:42.5]} 8. h3 {[%clk 0:04:49.1]}
8... O-O {[%clk 0:04:40.3]} 9. Nbd2 {[%clk 0:04:47.8]} 9... Bd7 {[%clk
0:04:33.6]} 10. g4 {[%clk 0:04:26.4]} 10... Bd6 {[%clk 0:04:17.9]} 11. Be5
{[%clk 0:04:20.7]} 11... Bxe5 {[%clk 0:04:11.9]} 12. Nxe5 {[%clk 0:04:18.8]}
12... Nc6 {[%clk 0:04:06.2]} 13. f4 {[%clk 0:04:17.1]} 13... Nxe5 {[%clk
0:04:03.9]} 14. fxe5 {[%clk 0:04:15.6]} 14... Ne8 {[%clk 0:03:58.9]} 15. Bg2
{[%clk 0:04:15.5]} 15... f6 {[%clk 0:03:57.5]} 16. exf6 {[%clk 0:04:06.5]} 16...
Nxf6 {[%clk 0:03:49.1]} 17. O-O {[%clk 0:04:03.7]} 17... e5 {[%clk 0:03:48.3]}
18. Kh1 {[%clk 0:03:57.1]} 18... e4 {[%clk 0:03:46.3]} 19. b3 {[%clk 0:03:54.4]}
19... cxb3 {[%clk 0:03:41.2]} 20. axb3 {[%clk 0:03:49]} 20... Qc7 {[%clk
0:03:40]} 21. Rf4 {[%clk 0:03:43.4]} 21... g5 {[%clk 0:03:30]} 0-1